[Event "*** Titled Tuesday Blitz"]
[Site "Chess.com"]
[Date "2020.03.03"]
[Round "9"]
[White "GianmarcoVaR"]
[Black "afgano29"]
[Result "1-0"]
[WhiteElo "2565"]
[BlackElo "2691"]
[TimeControl "180+1"]
[EndTime "10:44:47 PST"]
[Termination "GianmarcoVaR won by resignation"]

1. d4 {[%clk 0:03:00.9]} 1... Nf6 {[%clk 0:02:59.7]} 2. c4 {[%clk 0:02:56.3]}
2... g6 {[%clk 0:03:00]} 3. Nf3 {[%clk 0:02:54.5]} 3... Bg7 {[%clk 0:02:59.9]}
4. g3 {[%clk 0:02:53.6]} 4... O-O {[%clk 0:02:59.8]} 5. Bg2 {[%clk 0:02:53.5]}
5... d5 {[%clk 0:03:00]} 6. O-O {[%clk 0:02:54.4]} 6... dxc4 {[%clk 0:02:59.9]}
7. Nbd2 {[%clk 0:02:53]} 7... Nc6 {[%clk 0:02:57.1]} 8. Nxc4 {[%clk 0:02:52.1]}
8... Be6 {[%clk 0:02:57.1]} 9. b3 {[%clk 0:02:49]} 9... a5 {[%clk 0:02:56.8]}
10. Bb2 {[%clk 0:02:45.7]} 10... a4 {[%clk 0:02:55.9]} 11. e3 {[%clk 0:02:43.5]}
11... Bd5 {[%clk 0:02:52.2]} 12. Qe2 {[%clk 0:02:42.3]} 12... Ra6 {[%clk
0:02:50.1]} 13. Rfd1 {[%clk 0:02:39.7]} 13... Qa8 {[%clk 0:02:47.2]} 14. Bf1
{[%clk 0:02:34]} 14... b5 {[%clk 0:02:29.4]} 15. Ncd2 {[%clk 0:02:31.1]} 15...
Na7 {[%clk 0:01:48.3]} 16. Ba3 {[%clk 0:02:17.4]} 16... Re8 {[%clk 0:01:38.4]}
17. Bc5 {[%clk 0:02:17]} 17... Nd7 {[%clk 0:01:01.7]} 18. b4 {[%clk 0:01:11.3]}
18... e5 {[%clk 0:00:55.6]} 19. dxe5 {[%clk 0:01:08.2]} 19... Nxe5 {[%clk
0:00:51.3]} 20. Nxe5 {[%clk 0:01:07.3]} 20... Bxe5 {[%clk 0:00:50.9]} 21. Rac1
{[%clk 0:01:02.9]} 21... Bxa2 {[%clk 0:00:49.3]} 22. Nf3 {[%clk 0:01:02.2]}
22... Bb3 {[%clk 0:00:38.9]} 23. Rd7 {[%clk 0:00:59.3]} 23... Bf6 {[%clk
0:00:13.1]} 24. Rxc7 {[%clk 0:00:57.3]} 24... a3 {[%clk 0:00:12.8]} 25. Nd4
{[%clk 0:00:57.2]} 25... Bc4 {[%clk 0:00:12.4]} 26. Qc2 {[%clk 0:00:41.9]} 26...
Bxf1 {[%clk 0:00:11.4]} 27. Rxf1 {[%clk 0:00:42.5]} 27... a2 {[%clk 0:00:11.6]}
28. Ra1 {[%clk 0:00:43]} 28... Qb8 {[%clk 0:00:11.9]} 29. Rxa7 {[%clk
0:00:41.4]} 29... Rxa7 {[%clk 0:00:12.3]} 30. Bxa7 {[%clk 0:00:41.6]} 30... Qxa7
{[%clk 0:00:12.2]} 31. Rxa2 {[%clk 0:00:42.2]} 31... Qd7 {[%clk 0:00:11.7]} 32.
Qc6 {[%clk 0:00:24]} 32... Qe7 {[%clk 0:00:08.6]} 33. Ra8 {[%clk 0:00:19.2]}
33... Rxa8 {[%clk 0:00:04.9]} 34. Qxa8+ {[%clk 0:00:19.7]} 34... Kg7 {[%clk
0:00:05.7]} 35. Nxb5 {[%clk 0:00:08.7]} 35... Qxb4 {[%clk 0:00:05.5]} 36. Qd5
{[%clk 0:00:09]} 36... Qb1+ {[%clk 0:00:04.8]} 37. Kg2 {[%clk 0:00:09.2]} 37...
Qb2 {[%clk 0:00:04.9]} 38. Nd6 {[%clk 0:00:08.2]} 38... Kh6 {[%clk 0:00:02.4]}
39. Nxf7+ {[%clk 0:00:07.3]} 39... Kg7 {[%clk 0:00:02.3]} 40. Nd6 {[%clk
0:00:07.8]} 40... Qe5 {[%clk 0:00:02.1]} 41. Qxe5 {[%clk 0:00:07.5]} 41... Bxe5
{[%clk 0:00:03]} 42. Nc4 {[%clk 0:00:07.6]} 42... Bb8 {[%clk 0:00:03.7]} 43. e4
{[%clk 0:00:07.6]} 43... Kf6 {[%clk 0:00:04.6]} 44. f4 {[%clk 0:00:07.5]} 44...
Ke6 {[%clk 0:00:05.5]} 45. Kf3 {[%clk 0:00:07.5]} 45... Ba7 {[%clk 0:00:06.4]}
46. g4 {[%clk 0:00:06.5]} 46... Bg1 {[%clk 0:00:05.7]} 47. h4 {[%clk 0:00:06.5]}
47... Kd7 {[%clk 0:00:06.4]} 48. f5 {[%clk 0:00:06.5]} 48... Ke7 {[%clk
0:00:06.1]} 49. e5 {[%clk 0:00:06.2]} 49... Bh2 {[%clk 0:00:05.7]} 50. Ke4
{[%clk 0:00:05.6]} 50... Bg3 {[%clk 0:00:05.4]} 51. h5 {[%clk 0:00:05.9]} 51...
Kf7 {[%clk 0:00:04.4]} 52. Nd6+ {[%clk 0:00:05.6]} 52... Kg7 {[%clk 0:00:04.5]}
53. f6+ {[%clk 0:00:05.1]} 53... Kf8 {[%clk 0:00:04.9]} 54. Kd5 {[%clk
0:00:04.7]} 54... Bf4 {[%clk 0:00:02.8]} 55. e6 {[%clk 0:00:05.1]} 55... gxh5
{[%clk 0:00:03.6]} 56. e7+ {[%clk 0:00:05.4]} 1-0

[Event "*** Titled Tuesday Blitz"]
[Site "Chess.com"]
[Date "2020.03.03"]
[Round "9"]
[White "obliviate12"]
[Black "MartinCerveny"]
[Result "1-0"]
[WhiteElo "2845"]
[BlackElo "2622"]
[TimeControl "180+1"]
[EndTime "10:44:52 PST"]
[Termination "obliviate12 won by resignation"]

1. e4 {[%clk 0:03:00]} 1... c5 {[%clk 0:02:59.6]} 2. Nf3 {[%clk 0:02:59.9]} 2...
d6 {[%clk 0:02:59.8]} 3. d4 {[%clk 0:03:00.4]} 3... cxd4 {[%clk 0:03:00.7]} 4.
Nxd4 {[%clk 0:03:01.3]} 4... Nf6 {[%clk 0:03:01]} 5. Nc3 {[%clk 0:03:00.2]} 5...
a6 {[%clk 0:03:01.3]} 6. Be2 {[%clk 0:03:00.5]} 6... e5 {[%clk 0:03:01.3]} 7.
Nb3 {[%clk 0:03:00.8]} 7... Be7 {[%clk 0:03:01.5]} 8. Be3 {[%clk 0:02:58.9]}
8... Be6 {[%clk 0:03:00.8]} 9. f4 {[%clk 0:02:58.5]} 9... exf4 {[%clk
0:02:58.9]} 10. Bxf4 {[%clk 0:02:59.4]} 10... O-O {[%clk 0:02:58.5]} 11. Qd2
{[%clk 0:02:57.6]} 11... Qc7 {[%clk 0:02:49.3]} 12. O-O-O {[%clk 0:02:56.4]}
12... Rd8 {[%clk 0:02:43.8]} 13. g4 {[%clk 0:02:55.5]} 13... Nc6 {[%clk
0:02:41.1]} 14. g5 {[%clk 0:02:51.8]} 14... Ne8 {[%clk 0:02:40.3]} 15. Kb1
{[%clk 0:02:47.3]} 15... Ne5 {[%clk 0:02:36.6]} 16. h4 {[%clk 0:02:46.3]} 16...
Rac8 {[%clk 0:02:30.3]} 17. Nd5 {[%clk 0:02:35]} 17... Bxd5 {[%clk 0:02:28.9]}
18. exd5 {[%clk 0:02:35.9]} 18... b5 {[%clk 0:02:18.7]} 19. Nd4 {[%clk
0:02:28.2]} 19... Bf8 {[%clk 0:02:12.1]} 20. h5 {[%clk 0:02:26.4]} 20... Qc5
{[%clk 0:01:58.9]} 21. Nf5 {[%clk 0:01:53.5]} 21... g6 {[%clk 0:01:52.8]} 22.
Ng3 {[%clk 0:01:28.6]} 22... Bg7 {[%clk 0:01:51.3]} 23. Ne4 {[%clk 0:01:28.3]}
23... Qb6 {[%clk 0:01:43.3]} 24. Rdf1 {[%clk 0:01:27.7]} 24... a5 {[%clk
0:01:29.2]} 25. hxg6 {[%clk 0:01:25.6]} 25... hxg6 {[%clk 0:01:28.3]} 26. Bd3
{[%clk 0:00:56.8]} 26... a4 {[%clk 0:01:27.4]} 27. Qh2 {[%clk 0:00:52.6]} 27...
a3 {[%clk 0:01:23]} 28. Nf6+ {[%clk 0:00:37.5]} 28... Kf8 {[%clk 0:01:16.7]} 29.
Bxe5 {[%clk 0:00:33]} 29... dxe5 {[%clk 0:01:13.3]} 30. Qxe5 {[%clk 0:00:32.6]}
30... Rd6 {[%clk 0:00:36.5]} 31. Bxg6 {[%clk 0:00:23.1]} 31... Nxf6 {[%clk
0:00:30.9]} 32. gxf6 {[%clk 0:00:21.8]} 32... Rxf6 {[%clk 0:00:30.7]} 33. Rxf6
{[%clk 0:00:16]} 33... Qxf6 {[%clk 0:00:30.3]} 34. Qxf6 {[%clk 0:00:14.8]} 34...
Bxf6 {[%clk 0:00:31.2]} 35. Bf5 {[%clk 0:00:14.3]} 35... Rd8 {[%clk 0:00:25.9]}
36. Rd1 {[%clk 0:00:12.2]} 36... Bxb2 {[%clk 0:00:21.6]} 37. d6 {[%clk
0:00:10.9]} 37... Be5 {[%clk 0:00:20.5]} 38. d7 {[%clk 0:00:10.8]} 38... Ke7
{[%clk 0:00:20.8]} 39. Rd5 {[%clk 0:00:10.9]} 39... Bd6 {[%clk 0:00:18.8]} 40.
Rxb5 {[%clk 0:00:10.9]} 40... Rb8 {[%clk 0:00:18.9]} 41. c4 {[%clk 0:00:08.6]}
41... Kd8 {[%clk 0:00:16.3]} 42. Kc2 {[%clk 0:00:08.4]} 42... Rxb5 {[%clk
0:00:15.3]} 43. cxb5 {[%clk 0:00:09.3]} 43... Kc7 {[%clk 0:00:15.5]} 44. Kb3
{[%clk 0:00:09.8]} 44... Be7 {[%clk 0:00:15.7]} 45. Kc4 {[%clk 0:00:10]} 45...
Kb6 {[%clk 0:00:15.7]} 46. Bd3 {[%clk 0:00:09.4]} 46... Bd8 {[%clk 0:00:15.8]}
47. Kd5 {[%clk 0:00:09.2]} 47... Kc7 {[%clk 0:00:16]} 48. Bf5 {[%clk 0:00:09]}
48... Kb6 {[%clk 0:00:16.2]} 49. Kc4 {[%clk 0:00:09.3]} 49... Bc7 {[%clk
0:00:16]} 50. Bh3 {[%clk 0:00:09.7]} 50... Bd8 {[%clk 0:00:16.1]} 51. Bg2 {[%clk
0:00:10.2]} 51... Bc7 {[%clk 0:00:16.3]} 52. Bc6 {[%clk 0:00:11.1]} 52... Bd8
{[%clk 0:00:16.4]} 53. Kd5 {[%clk 0:00:12]} 53... f6 {[%clk 0:00:16.3]} 54. Ke6
{[%clk 0:00:12.2]} 54... Kc7 {[%clk 0:00:16.7]} 55. Kf5 {[%clk 0:00:12.4]} 55...
Kb6 {[%clk 0:00:16.3]} 56. Ke6 {[%clk 0:00:12.6]} 56... Kc7 {[%clk 0:00:16.5]}
57. Kd5 {[%clk 0:00:13.1]} 57... Kb6 {[%clk 0:00:16.6]} 58. Kd6 {[%clk
0:00:13.6]} 58... f5 {[%clk 0:00:15.7]} 59. Ke5 {[%clk 0:00:14]} 59... f4 {[%clk
0:00:15.6]} 60. Kxf4 {[%clk 0:00:14.3]} 60... Kc5 {[%clk 0:00:16.5]} 61. Ke5
{[%clk 0:00:14.7]} 61... Bh4 {[%clk 0:00:14.8]} 62. Ke6 {[%clk 0:00:13.8]} 62...
Bd8 {[%clk 0:00:14.5]} 63. Kf7 {[%clk 0:00:14]} 63... Kd6 {[%clk 0:00:14.5]} 64.
Ke8 {[%clk 0:00:14.1]} 64... Kc7 {[%clk 0:00:14]} 65. b6+ {[%clk 0:00:14.3]} 1-0

[Event "*** Titled Tuesday Blitz"]
[Site "Chess.com"]
[Date "2020.03.03"]
[Round "9"]
[White "JakeCarlosBanawa"]
[Black "mitraasz"]
[Result "1-0"]
[WhiteElo "2413"]
[BlackElo "2143"]
[TimeControl "180+1"]
[EndTime "10:44:58 PST"]
[Termination "JakeCarlosBanawa won by checkmate"]

1. d4 {[%clk 0:03:00.9]} 1... Nf6 {[%clk 0:02:58.3]} 2. c4 {[%clk 0:03:00.9]}
2... g6 {[%clk 0:02:58.4]} 3. Nc3 {[%clk 0:03:01]} 3... Bg7 {[%clk 0:02:58.3]}
4. e4 {[%clk 0:03:01.2]} 4... d6 {[%clk 0:02:58.7]} 5. Nf3 {[%clk 0:03:01.7]}
5... O-O {[%clk 0:02:58.8]} 6. Be2 {[%clk 0:03:02.2]} 6... Nbd7 {[%clk
0:02:58.8]} 7. O-O {[%clk 0:03:00.4]} 7... e5 {[%clk 0:02:58.9]} 8. Be3 {[%clk
0:02:56.9]} 8... Re8 {[%clk 0:02:51.3]} 9. d5 {[%clk 0:02:56]} 9... Nc5 {[%clk
0:02:50.6]} 10. Nd2 {[%clk 0:02:51]} 10... a5 {[%clk 0:02:49.8]} 11. a3 {[%clk
0:02:45.1]} 11... a4 {[%clk 0:02:48]} 12. Bxc5 {[%clk 0:02:44.1]} 12... dxc5
{[%clk 0:02:48.7]} 13. Nxa4 {[%clk 0:02:44.2]} 13... b6 {[%clk 0:02:46.6]} 14.
b4 {[%clk 0:02:23.1]} 14... Bd7 {[%clk 0:02:40.1]} 15. Nc3 {[%clk 0:02:20.4]}
15... cxb4 {[%clk 0:02:38.1]} 16. axb4 {[%clk 0:02:19.2]} 16... Qe7 {[%clk
0:02:35.6]} 17. Qb3 {[%clk 0:02:08.6]} 17... Bf8 {[%clk 0:02:32.6]} 18. Rab1
{[%clk 0:02:04]} 18... Ra7 {[%clk 0:02:28.4]} 19. Nb5 {[%clk 0:01:46.1]} 19...
Bxb5 {[%clk 0:02:27.3]} 20. cxb5 {[%clk 0:01:47]} 20... Rea8 {[%clk 0:02:26.9]}
21. Rfc1 {[%clk 0:01:46.3]} 21... Ra4 {[%clk 0:02:20.2]} 22. Rc6 {[%clk
0:01:17.6]} 22... Rxb4 {[%clk 0:02:07.9]} 23. Qc2 {[%clk 0:01:16.4]} 23... Rxb1+
{[%clk 0:01:57.7]} 24. Nxb1 {[%clk 0:01:13.6]} 24... Ne8 {[%clk 0:01:56.3]} 25.
g3 {[%clk 0:01:09]} 25... Qb4 {[%clk 0:01:52.8]} 26. Nd2 {[%clk 0:00:59.9]}
26... Ra1+ {[%clk 0:01:50.2]} 27. Kg2 {[%clk 0:00:59.8]} 27... Bc5 {[%clk
0:01:33.2]} 28. Nb3 {[%clk 0:00:49.2]} 28... Bd6 {[%clk 0:01:25.7]} 29. Nd2
{[%clk 0:00:45.3]} 29... Nf6 {[%clk 0:01:21.1]} 30. Nc4 {[%clk 0:00:40.7]} 30...
Bc5 {[%clk 0:01:03.4]} 31. Rxf6 {[%clk 0:00:32.9]} 31... Qe1 {[%clk 0:01:00.6]}
32. Ne3 {[%clk 0:00:20.6]} 32... Rc1 {[%clk 0:00:45.8]} 33. Qb2 {[%clk
0:00:17.4]} 33... Bd4 {[%clk 0:00:41.1]} 34. Qa2 {[%clk 0:00:16.1]} 34... Ra1
{[%clk 0:00:38.4]} 35. Qc2 {[%clk 0:00:14.8]} 35... Rc1 {[%clk 0:00:38.1]} 36.
Qd3 {[%clk 0:00:15]} 36... Rc3 {[%clk 0:00:34.1]} 37. Qd1 {[%clk 0:00:14.9]}
37... Rc1 {[%clk 0:00:27.2]} 38. Qxe1 {[%clk 0:00:13.5]} 38... Rxe1 {[%clk
0:00:27.9]} 39. Kf3 {[%clk 0:00:12.8]} 39... Bc5 {[%clk 0:00:20]} 40. Rc6 {[%clk
0:00:12.8]} 40... Bd6 {[%clk 0:00:20.1]} 41. Nc4 {[%clk 0:00:12.8]} 41... Rb1
{[%clk 0:00:19.1]} 42. Nxd6 {[%clk 0:00:12.2]} 42... cxd6 {[%clk 0:00:19.8]} 43.
Rxb6 {[%clk 0:00:12.9]} 43... Rb3+ {[%clk 0:00:20]} 44. Kg2 {[%clk 0:00:11.9]}
44... Rb2 {[%clk 0:00:20.4]} 45. Bf1 {[%clk 0:00:11.8]} 45... Kg7 {[%clk
0:00:19.2]} 46. Rxd6 {[%clk 0:00:11.8]} 46... Rb4 {[%clk 0:00:18.8]} 47. f3
{[%clk 0:00:10.4]} 47... Kf8 {[%clk 0:00:18.1]} 48. Rd7 {[%clk 0:00:09.1]} 48...
Rb2+ {[%clk 0:00:17.1]} 49. Kg1 {[%clk 0:00:08.5]} 49... Ke8 {[%clk 0:00:17.5]}
50. Rc7 {[%clk 0:00:08.8]} 50... Rb1 {[%clk 0:00:16.8]} 51. d6 {[%clk 0:00:09]}
51... h5 {[%clk 0:00:16]} 52. d7+ {[%clk 0:00:08]} 52... Kd8 {[%clk 0:00:16.2]}
53. Rb7 {[%clk 0:00:06.9]} 53... f5 {[%clk 0:00:16.4]} 54. exf5 {[%clk
0:00:06.1]} 54... gxf5 {[%clk 0:00:16.4]} 55. Kf2 {[%clk 0:00:06.8]} 55... Rb2+
{[%clk 0:00:16.4]} 56. Ke3 {[%clk 0:00:07.1]} 56... Rb3+ {[%clk 0:00:15.9]} 57.
Kd2 {[%clk 0:00:06.9]} 57... Rb2+ {[%clk 0:00:13.9]} 58. Kc3 {[%clk 0:00:06.6]}
58... Rb1 {[%clk 0:00:13.4]} 59. Bd3 {[%clk 0:00:04.2]} 59... Rc1+ {[%clk
0:00:13.3]} 60. Kd2 {[%clk 0:00:03.8]} 60... Ra1 {[%clk 0:00:12.9]} 61. Bxf5
{[%clk 0:00:03.5]} 61... Ra2+ {[%clk 0:00:13.1]} 62. Kc3 {[%clk 0:00:03.3]}
62... Rxh2 {[%clk 0:00:12.2]} 63. Rb8+ {[%clk 0:00:03.2]} 63... Ke7 {[%clk
0:00:12.5]} 64. d8=Q+ {[%clk 0:00:03.2]} 64... Kf7 {[%clk 0:00:13]} 65. Qf8#
{[%clk 0:00:03]} 1-0

[Event "*** Titled Tuesday Blitz"]
[Site "Chess.com"]
[Date "2020.03.03"]
[Round "9"]
[White "Sibelephant"]
[Black "Tjktiger"]
[Result "1/2-1/2"]
[WhiteElo "3038"]
[BlackElo "2808"]
[TimeControl "180+1"]
[EndTime "10:45:10 PST"]
[Termination "Game drawn - insufficient material"]

1. c4 {[%clk 0:02:58.3]} 1... g6 {[%clk 0:02:58.9]} 2. g3 {[%clk 0:02:57.9]}
2... c5 {[%clk 0:02:58.7]} 3. Bg2 {[%clk 0:02:58.3]} 3... Bg7 {[%clk 0:02:59.6]}
4. Nc3 {[%clk 0:02:58.8]} 4... Nc6 {[%clk 0:03:00.5]} 5. Nf3 {[%clk 0:02:59]}
5... d6 {[%clk 0:03:00.3]} 6. O-O {[%clk 0:02:58]} 6... Rb8 {[%clk 0:03:00.6]}
7. e3 {[%clk 0:02:55.7]} 7... Nh6 {[%clk 0:03:00.6]} 8. d4 {[%clk 0:02:55.6]}
8... cxd4 {[%clk 0:03:01.5]} 9. exd4 {[%clk 0:02:52.4]} 9... Bg4 {[%clk
0:03:01.1]} 10. d5 {[%clk 0:02:03]} 10... Ne5 {[%clk 0:03:00.5]} 11. Qa4+ {[%clk
0:02:02.5]} 11... b5 {[%clk 0:03:00.2]} 12. Nxb5 {[%clk 0:01:56.4]} 12... Nxf3+
{[%clk 0:03:00.4]} 13. Bxf3 {[%clk 0:01:50.6]} 13... Bxf3 {[%clk 0:03:01.3]} 14.
Nd4+ {[%clk 0:01:50.5]} 14... Qd7 {[%clk 0:03:01.7]} 15. Qxd7+ {[%clk
0:01:50.5]} 15... Kxd7 {[%clk 0:03:02.6]} 16. Nxf3 {[%clk 0:01:51.1]} 16... Nf5
{[%clk 0:03:03.2]} 17. Rb1 {[%clk 0:01:40]} 17... Rhc8 {[%clk 0:03:02.7]} 18. g4
{[%clk 0:01:32]} 18... Nd4 {[%clk 0:02:58.3]} 19. Nxd4 {[%clk 0:01:31.7]} 19...
Bxd4 {[%clk 0:02:58.5]} 20. b3 {[%clk 0:01:32.1]} 20... Rxc4 {[%clk 0:02:57.4]}
21. Be3 {[%clk 0:01:31.6]} 21... Rcb4 {[%clk 0:02:39.8]} 22. a3 {[%clk
0:01:31.7]} 22... Bxe3 {[%clk 0:02:39.7]} 23. axb4 {[%clk 0:01:31.8]} 23... Bd4
{[%clk 0:02:19.8]} 24. Rfc1 {[%clk 0:01:22.8]} 24... Rb5 {[%clk 0:02:18.3]} 25.
Rc4 {[%clk 0:01:23.1]} 25... Rxd5 {[%clk 0:02:17.3]} 26. Kg2 {[%clk 0:01:01.5]}
26... Bb6 {[%clk 0:02:16.8]} 27. Rb2 {[%clk 0:01:01.5]} 27... g5 {[%clk
0:02:16.1]} 28. Rbc2 {[%clk 0:00:53]} 28... Rd3 {[%clk 0:02:14.2]} 29. R4c3
{[%clk 0:00:48.9]} 29... Rd4 {[%clk 0:02:13.7]} 30. Rc4 {[%clk 0:00:47.2]} 30...
Rd3 {[%clk 0:02:13.5]} 31. R2c3 {[%clk 0:00:45.1]} 31... Rd2 {[%clk 0:02:13.4]}
32. Rf3 {[%clk 0:00:45.6]} 32... f6 {[%clk 0:02:13.1]} 33. h3 {[%clk 0:00:39.1]}
33... d5 {[%clk 0:02:12.8]} 34. Rcc3 {[%clk 0:00:39.2]} 34... d4 {[%clk
0:02:07.9]} 35. Rfd3 {[%clk 0:00:36.1]} 35... Rb2 {[%clk 0:02:03.1]} 36. Kf3
{[%clk 0:00:23.4]} 36... Kd6 {[%clk 0:02:00]} 37. Rc8 {[%clk 0:00:09.4]} 37...
e5 {[%clk 0:01:58.9]} 38. Re8 {[%clk 0:00:08.2]} 38... Kd5 {[%clk 0:01:57.6]}
39. Re7 {[%clk 0:00:08.3]} 39... Rc2 {[%clk 0:01:52.4]} 40. Rd7+ {[%clk
0:00:07.5]} 40... Ke6 {[%clk 0:01:49.5]} 41. Rxh7 {[%clk 0:00:07.8]} 41... Kd5
{[%clk 0:01:49.8]} 42. Rd7+ {[%clk 0:00:06.9]} 42... Ke6 {[%clk 0:01:50.2]} 43.
Rh7 {[%clk 0:00:06.1]} 43... Kd5 {[%clk 0:01:45.8]} 44. Re7 {[%clk 0:00:06]}
44... Bc7 {[%clk 0:01:36.2]} 45. b5 {[%clk 0:00:04.5]} 45... Bd6 {[%clk
0:01:35.8]} 46. Re8 {[%clk 0:00:04.8]} 46... Rc5 {[%clk 0:01:30.3]} 47. Kg2
{[%clk 0:00:01.9]} 47... e4 {[%clk 0:01:28.6]} 48. Rd1 {[%clk 0:00:01.9]} 48...
Rxb5 {[%clk 0:01:23.5]} 49. Ra8 {[%clk 0:00:02.4]} 49... Rb7 {[%clk 0:01:20.5]}
50. Rd8 {[%clk 0:00:01.7]} 50... Rb6 {[%clk 0:01:16.8]} 51. f3 {[%clk
0:00:01.4]} 51... e3 {[%clk 0:01:16.1]} 52. Kf1 {[%clk 0:00:01.9]} 52... Rxb3
{[%clk 0:01:15.7]} 53. Rxd6+ {[%clk 0:00:02.1]} 53... Kxd6 {[%clk 0:01:15.7]}
54. Rxd4+ {[%clk 0:00:02.7]} 54... Kc6 {[%clk 0:01:14.3]} 55. Ra4 {[%clk
0:00:03.1]} 55... Kb6 {[%clk 0:01:12.8]} 56. Ke2 {[%clk 0:00:03]} 56... a5
{[%clk 0:01:13.1]} 57. f4 {[%clk 0:00:03.5]} 57... Kb5 {[%clk 0:01:12.3]} 58.
Rd4 {[%clk 0:00:03.9]} 58... Rb4 {[%clk 0:01:07.2]} 59. Rd5+ {[%clk 0:00:02.5]}
59... Kc4 {[%clk 0:01:04.9]} 60. Rf5 {[%clk 0:00:02]} 60... Kd4 {[%clk
0:01:02.1]} 61. fxg5 {[%clk 0:00:02.1]} 61... Rb2+ {[%clk 0:01:01.7]} 62. Ke1
{[%clk 0:00:02.6]} 62... Kd3 {[%clk 0:00:54.2]} 63. Rd5+ {[%clk 0:00:02.1]}
63... Ke4 {[%clk 0:00:54.6]} 64. Rxa5 {[%clk 0:00:02.2]} 64... fxg5 {[%clk
0:00:54.2]} 65. Rxg5 {[%clk 0:00:02.1]} 65... Rb1+ {[%clk 0:00:41.6]} 66. Ke2
{[%clk 0:00:02.3]} 66... Rb2+ {[%clk 0:00:42.5]} 67. Ke1 {[%clk 0:00:02.8]}
67... Rg2 {[%clk 0:00:42.9]} 68. Rg8 {[%clk 0:00:02]} 68... Kf3 {[%clk
0:00:41.6]} 69. Rf8+ {[%clk 0:00:01.3]} 69... Ke4 {[%clk 0:00:42]} 70. Re8+
{[%clk 0:00:02.2]} 70... Kf3 {[%clk 0:00:41.9]} 71. Rf8+ {[%clk 0:00:02.1]}
71... Kg3 {[%clk 0:00:42]} 72. Re8 {[%clk 0:00:03]} 72... Kf4 {[%clk 0:00:40.8]}
73. Rf8+ {[%clk 0:00:03]} 73... Kg3 {[%clk 0:00:41.1]} 74. Re8 {[%clk 0:00:03]}
74... Kxh3 {[%clk 0:00:24.8]} 75. Rxe3+ {[%clk 0:00:02.2]} 75... Kxg4 {[%clk
0:00:25.1]} 76. Re2 {[%clk 0:00:03.1]} 76... Rxe2+ {[%clk 0:00:23.5]} 77. Kxe2
{[%clk 0:00:04]} 1/2-1/2

[Event "*** Titled Tuesday Blitz"]
[Site "Chess.com"]
[Date "2020.03.03"]
[Round "9"]
[White "Willychess95"]
[Black "GM_dmitrij"]
[Result "1-0"]
[WhiteElo "2607"]
[BlackElo "2804"]
[TimeControl "180+1"]
[EndTime "10:45:19 PST"]
[Termination "Willychess95 won by resignation"]

1. e4 {[%clk 0:02:59.5]} 1... e5 {[%clk 0:03:00.1]} 2. Nf3 {[%clk 0:02:59.2]}
2... Nc6 {[%clk 0:03:00.7]} 3. Bc4 {[%clk 0:02:58.2]} 3... Nf6 {[%clk
0:03:00.6]} 4. Ng5 {[%clk 0:02:55.7]} 4... d5 {[%clk 0:03:00.2]} 5. exd5 {[%clk
0:02:56]} 5... Na5 {[%clk 0:03:00.8]} 6. Bb5+ {[%clk 0:02:56]} 6... c6 {[%clk
0:03:01.4]} 7. dxc6 {[%clk 0:02:56.2]} 7... bxc6 {[%clk 0:03:02.3]} 8. Qf3
{[%clk 0:02:56.2]} 8... Be7 {[%clk 0:03:02.4]} 9. Bd3 {[%clk 0:02:55]} 9... O-O
{[%clk 0:03:02.1]} 10. O-O {[%clk 0:02:53.4]} 10... h6 {[%clk 0:03:01.7]} 11.
Ne4 {[%clk 0:02:50.1]} 11... Nd5 {[%clk 0:03:02.2]} 12. Ng3 {[%clk 0:02:49.7]}
12... Bg5 {[%clk 0:02:47.6]} 13. Nc3 {[%clk 0:02:46.7]} 13... Nf4 {[%clk
0:02:42.3]} 14. Bf5 {[%clk 0:02:33.1]} 14... Bxf5 {[%clk 0:02:06.8]} 15. Nxf5
{[%clk 0:02:33]} 15... Qd7 {[%clk 0:02:07.7]} 16. Ng3 {[%clk 0:02:29.8]} 16...
Ne6 {[%clk 0:02:03.3]} 17. d3 {[%clk 0:02:23.7]} 17... Nd4 {[%clk 0:02:02.2]}
18. Qd1 {[%clk 0:02:23.9]} 18... f5 {[%clk 0:01:42]} 19. f4 {[%clk 0:02:17.4]}
19... exf4 {[%clk 0:01:37.9]} 20. Bxf4 {[%clk 0:02:18.3]} 20... c5 {[%clk
0:01:38.3]} 21. Bxg5 {[%clk 0:02:03.6]} 21... hxg5 {[%clk 0:01:39.2]} 22. Qd2
{[%clk 0:02:03.3]} 22... f4 {[%clk 0:01:17.4]} 23. Nge4 {[%clk 0:01:58]} 23...
Rf5 {[%clk 0:01:17.6]} 24. Rae1 {[%clk 0:01:48.9]} 24... Nac6 {[%clk 0:01:17.7]}
25. Ne2 {[%clk 0:01:36.3]} 25... Raf8 {[%clk 0:01:05.8]} 26. Nxd4 {[%clk
0:01:32.8]} 26... Nxd4 {[%clk 0:01:06.7]} 27. c3 {[%clk 0:01:22.6]} 27... Nc6
{[%clk 0:01:06.4]} 28. Qe2 {[%clk 0:01:11.9]} 28... Rd5 {[%clk 0:00:49.8]} 29.
Qh5 {[%clk 0:01:02.2]} 29... g4 {[%clk 0:00:44.1]} 30. Qg6 {[%clk 0:00:37.1]}
30... Ne5 {[%clk 0:00:37.8]} 31. Qa6 {[%clk 0:00:19.8]} 31... Nxd3 {[%clk
0:00:37.9]} 32. Rd1 {[%clk 0:00:18.9]} 32... Kh7 {[%clk 0:00:22.4]} 33. Rxd3
{[%clk 0:00:17]} 33... Rxd3 {[%clk 0:00:19.4]} 34. Nxc5 {[%clk 0:00:16.6]} 34...
Rd6 {[%clk 0:00:06.3]} 35. Nxd7 {[%clk 0:00:16]} 35... Rxa6 {[%clk 0:00:06.5]}
36. Nxf8+ {[%clk 0:00:16.5]} 36... Kg8 {[%clk 0:00:07.4]} 37. Rxf4 {[%clk
0:00:16.7]} 37... Rxa2 {[%clk 0:00:06.8]} 38. Ne6 {[%clk 0:00:13.7]} 38... Rxb2
{[%clk 0:00:06.7]} 39. Ng5 {[%clk 0:00:10.7]} 39... a5 {[%clk 0:00:05.4]} 40.
Ra4 {[%clk 0:00:10.3]} 40... Rb5 {[%clk 0:00:05.4]} 41. Ne4 {[%clk 0:00:09.5]}
41... Rd5 {[%clk 0:00:04.2]} 42. Kf2 {[%clk 0:00:09.7]} 42... Kf7 {[%clk
0:00:04.3]} 43. Kg3 {[%clk 0:00:09.3]} 43... Ke6 {[%clk 0:00:04.8]} 44. Kxg4
{[%clk 0:00:09.6]} 44... Ke5 {[%clk 0:00:05.2]} 45. Kf3 {[%clk 0:00:07.8]} 45...
Rb5 {[%clk 0:00:05.1]} 46. Ke3 {[%clk 0:00:06.1]} 46... Rd5 {[%clk 0:00:04.1]}
47. c4 {[%clk 0:00:04.6]} 47... Rd1 {[%clk 0:00:04.1]} 48. Rxa5+ {[%clk
0:00:04.8]} 48... Ke6 {[%clk 0:00:05]} 49. Nd2 {[%clk 0:00:04.7]} 49... Re1+
{[%clk 0:00:05]} 50. Kd4 {[%clk 0:00:04.9]} 50... Rh1 {[%clk 0:00:05.9]} 51. Nf3
{[%clk 0:00:04.4]} 51... Rd1+ {[%clk 0:00:05.2]} 52. Kc5 {[%clk 0:00:04.7]}
52... Rc1 {[%clk 0:00:06.1]} 53. Ra6+ {[%clk 0:00:05.6]} 53... Kf5 {[%clk
0:00:06]} 54. Ra2 {[%clk 0:00:06.5]} 54... Kf4 {[%clk 0:00:05.3]} 55. Rd2 {[%clk
0:00:07.2]} 55... Ke3 {[%clk 0:00:04]} 56. h3 {[%clk 0:00:06.1]} 56... Kf4
{[%clk 0:00:03.1]} 57. Kd5 {[%clk 0:00:06.4]} 57... Ra1 {[%clk 0:00:01.8]} 58.
c5 {[%clk 0:00:06.6]} 58... Ra5 {[%clk 0:00:02.7]} 59. Kd6 {[%clk 0:00:06.6]}
59... Ra8 {[%clk 0:00:03.4]} 60. Kd7 {[%clk 0:00:06]} 60... Ra7+ {[%clk
0:00:03.5]} 61. Ke6 {[%clk 0:00:05.7]} 61... Ra8 {[%clk 0:00:04.4]} 62. c6
{[%clk 0:00:05.6]} 62... g5 {[%clk 0:00:03.4]} 63. c7 {[%clk 0:00:05]} 63... g4
{[%clk 0:00:04.3]} 64. hxg4 {[%clk 0:00:05.9]} 64... Kxg4 {[%clk 0:00:05.2]} 65.
Kd7 {[%clk 0:00:06.3]} 65... Ra7 {[%clk 0:00:05.7]} 66. Kd8 {[%clk 0:00:06.7]}
66... Ra2 {[%clk 0:00:05.6]} 67. c8=Q+ {[%clk 0:00:07.6]} 67... Kg3 {[%clk
0:00:04.1]} 68. Rxa2 {[%clk 0:00:07]} 1-0